[Event "RUS-chT Higher League 2021"]
[Site "Sochi"]
[Date "2021.05.08"]
[Round "7.3"]
[White "Drygalov, Andrey"]
[Black "Smirnov, Timofey"]
[Result "1/2-1/2"]
[ECO "C92"]
[WhiteElo "2500"]
[BlackElo "2415"]
[Annotator "ChessBase"]
[PlyCount "194"]
[EventDate "2021.05.01"]
[EventType "team-tourn"]
[EventCountry "RUS"]
[SourceTitle "playchess.com"]
[Source "ChessBase"]
[SourceQuality "1"]
[TimeControl "40/5400+30:1800+30"]

1. e4 {[%emt 0:00:00]} e5 {[%emt 0:00:00]} 2. Nf3 {[%emt 0:00:00]} Nc6 {[%emt 0:00:00]} 3. Bb5 {[%emt 0:00:00]} a6 {[%emt 0:00:01]} 4. Ba4 {[%emt 0:00:00]} Nf6 {[%emt 0:00:05]} 5. O-O {[%emt 0:00:00]} Be7 {[%emt 0:00:12]} 6. Re1 {[%emt 0:00:04]} b5 {[%emt 0:00:10]} 7. Bb3 {[%emt 0:00:03]} d6 {[%emt 0:00:06]} 8. c3 {[%emt 0:00:03]} O-O {[%emt 0:00:06]} 9. h3 {[%emt 0:00:04]} Bb7 {[%emt 0:00:57]} 10. d4 {[%emt 0:00:06]} Re8 {[%emt 0:00:11]} 11. Nbd2 {[%emt 0:00:05]} Bf8 {[%emt 0:00:07]} 12. a3 {[%emt 0:00:06]} g6 {[%emt 0:01:42]} 13. Ba2 {[%emt 0:00:00]} Bg7 {[%emt 0:05:28]} 14. b4 {[%emt 0:25:23]} Nb8 {[%emt 0:18:57]} 15. Ng5 {[%emt 0:00:30]} Rf8 16. Nb3 {[%emt 0:10:31]} Nbd7 {[%emt 0:16:27]} 17. Na5 {[%emt 0:05:39]} Bc8 {[%emt 0:06:48]} 18. dxe5 {[%emt 0:05:46]} dxe5 19. c4 {[%emt 0:00:46]} h6 {[%emt 0:08:55]} 20. Nf3 {[%emt 0:04:08]} c5 {[%emt 0:10:31]} 21. Qd6 {[%emt 0:00:30]} Re8 22. Bb2 {[%emt 0:23:12]} Bf8 {[%emt 0:02:15]} 23. Qd2 {[%emt 0:01:30]} Qb6 {[%emt 0:06:04]} 24. Rab1 {[%emt 0:00:30]} Qd6 {[%emt 0:00:50]} 25. Bc3 {[%emt 0:03:06]} Qxd2 {[%emt 0:00:30]} 26. Bxd2 cxb4 {[%emt 0:04:54]} 27. axb4 {[%emt 0:00:42]} bxc4 28. Bxc4 Rb8 {[%emt 0:00:18]} 29. Bc3 {[%emt 0:05:49]} Rb6 {[%emt 0:00:28]} 30. Nd2 {[%emt 0:00:36]} Nb8 {[%emt 0:04:05]} 31. Bf1 {[%emt 0:02:57]} Bd7 {[%emt 0:01:17]} 32. Nac4 {[%emt 0:01:43]} Rbe6 {[%emt 0:00:24]} 33. Nf3 {[%emt 0:00:30]} Bc6 {[%emt 0:00:53]} 34. Bd3 {[%emt 0:02:52]} Nfd7 {[%emt 0:05:24]} 35. Na3 {[%emt 0:02:51]} a5 {[%emt 0:04:46]} 36. Bc4 {[%emt 0:01:27]} Rf6 {[%emt 0:00:14]} 37. Nc2 {[%emt 0:00:21]} Ba4 {[%emt 0:01:01]} 38. Ne3 {[%emt 0:00:44]} axb4 {[%emt 0:00:05]} 39. Bxb4 {[%emt 0:00:03]} Bxb4 {[%emt 0:03:55]} 40. Rxb4 {[%emt 0:00:00]} Bc6 {[%emt 0:00:00]} 41. Ng4 {[%emt 0:02:14]} Rf4 {[%emt 0:02:03]} 42. Nfxe5 {[%emt 0:13:21]} Nxe5 {[%emt 0:01:34]} 43. Nxe5 {[%emt 0:00:21]} Rxe5 {[%emt 0:00:09]} 44. Rxb8+ {[%emt 0:00:03]} Kg7 {[%emt 0:00:11]} 45. f3 {[%emt 0:00:03]} Rc5 {[%emt 0:14:47]} 46. Bb3 {[%emt 0:01:05]} Rb5 {[%emt 0:02:44]} 47. Rxb5 {[%emt 0:00:30]} Bxb5 {[%emt 0:00:01]} 48. Bd5 {[%emt 0:00:41]} Rf6 {[%emt 0:00:30]} 49. Rb1 {[%emt 0:00:30]} Bd7 {[%emt 0:00:30]} 50. Rb7 {[%emt 0:00:30]} Rd6 {[%emt 0:00:30]} 51. Kf2 {[%emt 0:00:30]} Be6 {[%emt 0:00:30]} 52. Rb5 {[%emt 0:00:30]} h5 {[%emt 0:00:30]} 53. Ke3 {[%emt 0:00:30]} Ra6 {[%emt 0:02:26]} 54. Kf4 {[%emt 0:07:37]} Kf6 {[%emt 0:01:56]} 55. e5+ {[%emt 0:03:50]} Kg7 {[%emt 0:00:02]} 56. Be4 {[%emt 0:01:29]} Kh6 {[%emt 0:01:10]} 57. h4 {[%emt 0:02:42]} Ra2 {[%emt 0:00:21]} 58. g3 {[%emt 0:00:03]} Ra4 {[%emt 0:03:28]} 59. Rb7 {[%emt 0:04:56]} Bd5 {[%emt 0:00:30]} 60. Rd7 {[%emt 0:00:05]} Be6 61. Rc7 {[%emt 0:00:23]} Bd5 {[%emt 0:01:16]} 62. Ke3 {[%emt 0:01:10]} Be6 {[%emt 0:00:42]} 63. Rc3 {[%emt 0:00:34]} Kg7 {[%emt 0:00:28]} 64. Bb7 {[%emt 0:01:38]} Rb4 {[%emt 0:01:27]} 65. Rc7 {[%emt 0:00:30]} Ra4 {[%emt 0:00:30]} 66. Be4 {[%emt 0:00:06]} Rb4 {[%emt 0:01:01]} 67. Ra7 {[%emt 0:00:24]} Rb2 {[%emt 0:02:02]} 68. Kf4 {[%emt 0:01:22]} Kh6 {[%emt 0:00:30]} 69. Ra4 {[%emt 0:00:09]} Bd7 {[%emt 0:00:39]} 70. Rd4 Be6 71. Rd6 {[%emt 0:01:35]} Rb4 {[%emt 0:00:24]} 72. Ke3 {[%emt 0:00:16]} Kg7 {[%emt 0:01:20]} 73. Bd5 {[%emt 0:02:32]} Bxd5 {[%emt 0:01:15]} 74. Rxd5 {[%emt 0:00:05]} Rb3+ {[%emt 0:01:12]} 75. Ke4 {[%emt 0:00:06]} Rb4+ {[%emt 0:00:08]} 76. Rd4 {[%emt 0:00:06]} Rb1 {[%emt 0:00:06]} 77. Rd7 {[%emt 0:00:00]} Re1+ {[%emt 0:00:37]} 78. Kf4 {[%emt 0:00:15]} Re2 {[%emt 0:00:18]} 79. Rd6 {[%emt 0:00:52]} Re1 {[%emt 0:00:30]} 80. Rd3 {[%emt 0:00:39]} Re2 {[%emt 0:00:43]} 81. Re3 {[%emt 0:00:24]} Rg2 {[%emt 0:01:01]} 82. Ra3 {[%emt 0:00:30]} Re2 {[%emt 0:00:03]} 83. Ra7 {[%emt 0:01:30]} Re1 {[%emt 0:00:06]} 84. Re7 {[%emt 0:00:06]} Kf8 {[%emt 0:00:16]} 85. Rd7 {[%emt 0:00:08]} Kg7 {[%emt 0:00:02]} 86. Ra7 Re2 87. g4 {[%emt 0:01:27]} hxg4 {[%emt 0:00:19]} 88. fxg4 {[%emt 0:00:03]} Re1 {[%emt 0:01:12]} 89. h5 {[%emt 0:01:32]} gxh5 {[%emt 0:01:12]} 90. gxh5 {[%emt 0:00:02]} Rf1+ {[%emt 0:00:13]} 91. Ke4 {[%emt 0:00:11]} Rh1 {[%emt 0:01:13]} 92. Kf4 {[%emt 0:00:44]} Rxh5 {[%emt 0:01:54]} 93. e6 {[%emt 0:00:03]} Kf6 {[%emt 0:00:12]} 94. exf7 {[%emt 0:01:23]} Rh8 {[%emt 0:00:47]} 95. Rb7 {[%emt 0:00:03]} Rf8 {[%emt 0:00:09]} 96. Ra7 {[%emt 0:00:03]} Rxf7 {[%emt 0:00:05]} 97. Rxf7+ {[%emt 0:00:04]} Kxf7 {[%emt 0:00:04]} 1/2-1/2

[Event "RUS-chT Higher League 2021"]
[Site "Sochi"]
[Date "2021.05.08"]
[Round "7.4"]
[White "Klukin, Kirill"]
[Black "Gutenev, Alexander"]
[Result "1/2-1/2"]
[ECO "A15"]
[WhiteElo "2330"]
[BlackElo "2431"]
[Annotator "NA"]
[PlyCount "109"]
[EventDate "2021.05.01"]
[EventType "team-tourn"]
[EventCountry "RUS"]
[SourceTitle "playchess.com"]
[Source "ChessBase"]
[SourceQuality "1"]
[TimeControl "40/5400+30:1800+30"]

1. c4 {[%emt 0:00:00]} Nf6 {[%emt 0:00:00]} 2. Nf3 {[%emt 0:00:00]} g6 {[%emt 0:00:09]} 3. Nc3 {[%emt 0:00:00]} d5 {[%emt 0:00:08]} 4. cxd5 {[%emt 0:00:07]} Nxd5 {[%emt 0:00:07]} 5. h4 {[%emt 0:00:25]} h5 {[%emt 0:02:26]} 6. Qb3 {[%emt 0:01:01]} Nb6 {[%emt 0:00:37]} 7. d4 {[%emt 0:01:34]} Bg7 {[%emt 0:00:21]} 8. Bf4 {[%emt 0:00:18]} Be6 {[%emt 0:05:56]} 9. Qa3 {[%emt 0:03:02]} Nc6 {[%emt 0:01:30]} 10. e3 {[%emt 0:00:46]} O-O {[%emt 0:05:13]} 11. Bb5 {[%emt 0:09:26]} Nd5 {[%emt 0:15:34]} 12. Bg3 {[%emt 0:09:05]} Ncb4 {[%emt 0:04:54]} 13. Rc1 {[%emt 0:07:59]} a5 {[%emt 0:05:47]} 14. Ng5 {[%emt 0:16:14]} Bg4 {[%emt 0:05:30]} 15. O-O {[%emt 0:03:12]} Nb6 {[%emt 0:09:45]} 16. Na4 {[%emt 0:08:21]} c6 {[%emt 0:17:39]} 17. Nxb6 {[%emt 0:00:15]} Qxb6 {[%emt 0:00:04]} 18. Bc4 {[%emt 0:00:06]} a4 {[%emt 0:10:27]} 19. f3 {[%emt 0:05:17]} Bd7 {[%emt 0:04:02]} 20. Be1 {[%emt 0:02:39]} Nd5 {[%emt 0:00:33]} 21. Bf2 {[%emt 0:02:10]} Qb4 {[%emt 0:01:08]} 22. Bxd5 {[%emt 0:07:09]} Qxa3 {[%emt 0:00:07]} 23. Bxf7+ {[%emt 0:00:08]} Rxf7 {[%emt 0:00:05]} 24. bxa3 {[%emt 0:00:03]} Rf5 {[%emt 0:00:27]} 25. Ne4 {[%emt 0:01:51]} Rb5 {[%emt 0:00:35]} 26. Nc5 {[%emt 0:06:55]} Bc8 {[%emt 0:00:24]} 27. Rb1 {[%emt 0:00:51]} b6 {[%emt 0:00:17]} 28. Rxb5 {[%emt 0:03:34]} cxb5 {[%emt 0:00:08]} 29. Ne4 {[%emt 0:00:47]} Bd7 {[%emt 0:03:15]} 30. Rc1 {[%emt 0:00:48]} Rc8 {[%emt 0:00:04]} 31. Rxc8+ {[%emt 0:03:39]} Bxc8 {[%emt 0:00:02]} 32. Bg3 {[%emt 0:01:27]} Be6 {[%emt 0:00:45]} 33. Nc3 {[%emt 0:00:21]} Bc4 {[%emt 0:03:32]} 34. Bc7 {[%emt 0:00:32]} Kf7 {[%emt 0:00:03]} 35. Bxb6 {[%emt 0:00:48]} e5 {[%emt 0:00:04]} 36. Kf2 {[%emt 0:05:20]} exd4 {[%emt 0:00:05]} 37. exd4 {[%emt 0:00:07]} Bh6 {[%emt 0:00:07]} 38. Bc5 {[%emt 0:00:36]} Ke6 {[%emt 0:01:15]} 39. d5+ {[%emt 0:01:53]} Kd7 {[%emt 0:02:45]} 40. Ne4 {[%emt 0:00:00]} Bxd5 {[%emt 0:00:00]} 41. Nf6+ {[%emt 0:07:17]} Kc6 {[%emt 0:02:48]} 42. Nxd5 {[%emt 0:00:14]} Kxc5 {[%emt 0:04:58]} 43. Ne7 {[%emt 0:03:58]} b4 {[%emt 0:03:32]} 44. Ke2 {[%emt 0:06:35]} Kc4 {[%emt 0:05:49]} 45. axb4 {[%emt 0:02:15]} Kxb4 {[%emt 0:00:09]} 46. Kd3 {[%emt 0:00:28]} Ka3 {[%emt 0:00:22]} 47. Kc2 {[%emt 0:00:31]} Kxa2 {[%emt 0:00:27]} 48. Nxg6 {[%emt 0:00:08]} Ka3 {[%emt 0:00:16]} 49. Ne5 {[%emt 0:09:33]} Kb4 {[%emt 0:03:59]} 50. Nd3+ {[%emt 0:00:06]} Kc4 {[%emt 0:00:10]} 51. Nb2+ {[%emt 0:00:05]} Kd4 {[%emt 0:03:29]} 52. Nxa4 {[%emt 0:00:19]} Ke3 {[%emt 0:00:05]} 53. Nc3 {[%emt 0:02:02]} Kf2 {[%emt 0:01:31]} 54. g4 {[%emt 0:00:14]} Kxf3 {[%emt 0:01:25]} 55. gxh5 {[%emt 0:00:19]} 1/2-1/2

[Event "RUS-chT Higher League 2021"]
[Site "Sochi"]
[Date "2021.05.08"]
[Round "7.5"]
[White "Kezin, Roman"]
[Black "Khegay, Dmitriy"]
[Result "1/2-1/2"]
[ECO "B10"]
[WhiteElo "2472"]
[BlackElo "2523"]
[Annotator "ChessBase"]
[PlyCount "97"]
[EventDate "2021.05.01"]
[EventType "team-tourn"]
[EventCountry "RUS"]
[SourceTitle "playchess.com"]
[Source "ChessBase"]
[SourceQuality "1"]
[TimeControl "40/5400+30:1800+30"]

1. e4 {[%emt 0:00:00]} c6 {[%emt 0:00:07]} 2. Nf3 {[%emt 0:00:00]} d5 {[%emt 0:00:06]} 3. d3 {[%emt 0:00:00]} dxe4 {[%emt 0:06:09]} 4. dxe4 Qxd1+ {[%emt 0:00:04]} 5. Kxd1 {[%emt 0:00:41]} g6 {[%emt 0:00:03]} 6. c3 {[%emt 0:22:22]} Nf6 {[%emt 0:04:00]} 7. Nfd2 {[%emt 0:00:40]} Bh6 {[%emt 0:01:57]} 8. f3 {[%emt 0:00:08]} O-O {[%emt 0:03:29]} 9. a4 {[%emt 0:02:17]} Rd8 {[%emt 0:02:42]} 10. Kc2 {[%emt 0:04:38]} Nbd7 {[%emt 0:04:16]} 11. Nb3 {[%emt 0:09:04]} Bxc1 {[%emt 0:00:15]} 12. Kxc1 {[%emt 0:00:10]} Ne5 {[%emt 0:15:53]} 13. N1d2 {[%emt 0:00:57]} Ne8 {[%emt 0:02:08]} 14. Be2 {[%emt 0:29:23]} Nc7 {[%emt 0:03:44]} 15. Kc2 {[%emt 0:01:03]} f5 {[%emt 0:04:52]} 16. Rhe1 {[%emt 0:08:47]} fxe4 {[%emt 0:00:50]} 17. Nxe4 {[%emt 0:00:30]} Bf5 {[%emt 0:00:05]} 18. Bf1 {[%emt 0:00:18]} Nf7 {[%emt 0:20:25]} 19. Nd4 {[%emt 0:01:32]} Kf8 {[%emt 0:02:22]} 20. a5 {[%emt 0:02:04]} Bxe4+ {[%emt 0:01:51]} 21. Rxe4 {[%emt 0:00:06]} c5 {[%emt 0:00:04]} 22. Nb3 {[%emt 0:09:32]} b6 {[%emt 0:00:05]} 23. Rae1 {[%emt 0:00:18]} e6 {[%emt 0:00:07]} 24. f4 {[%emt 0:01:47]} Ke7 {[%emt 0:02:06]} 25. g3 {[%emt 0:00:11]} Rd6 {[%emt 0:09:06]} 26. Nd2 {[%emt 0:01:58]} b5 {[%emt 0:02:31]} 27. Nb3 {[%emt 0:00:52]} c4 {[%emt 0:00:04]} 28. Nd4 {[%emt 0:00:16]} Kf6 {[%emt 0:00:26]} 29. g4 {[%emt 0:02:36]} h6 {[%emt 0:02:36]} 30. h4 {[%emt 0:00:10]} Re8 {[%emt 0:05:33]} 31. g5+ {[%emt 0:00:30]} hxg5 {[%emt 0:00:04]} 32. hxg5+ {[%emt 0:00:44]} Kg7 {[%emt 0:00:04]} 33. Bh3 {[%emt 0:00:05]} Nd8 {[%emt 0:01:50]} 34. Re5 {[%emt 0:02:49]} a6 {[%emt 0:00:04]} 35. f5 {[%emt 0:00:28]} gxf5 {[%emt 0:00:22]} 36. Rc5 {[%emt 0:00:20]} Rd7 {[%emt 0:00:18]} 37. Nxf5+ {[%emt 0:00:33]} exf5 {[%emt 0:01:47]} 38. Rxc7 {[%emt 0:00:02]} Rxc7 {[%emt 0:00:05]} 39. Rxe8 {[%emt 0:00:04]} Nb7 {[%emt 0:01:42]} 40. Bxf5 {[%emt 0:00:00]} Nxa5 {[%emt 0:00:00]} 41. Re6 {[%emt 0:09:30]} Rf7 {[%emt 0:03:24]} 42. Rg6+ {[%emt 0:02:19]} Kf8 {[%emt 0:00:06]} 43. Rxa6 {[%emt 0:17:08]} Rxf5 {[%emt 0:00:08]} 44. Rxa5 {[%emt 0:00:06]} Rxg5 {[%emt 0:00:04]} 45. Kb1 {[%emt 0:02:07]} Ke7 {[%emt 0:00:09]} 46. Ra6 {[%emt 0:00:02]} Kd7 {[%emt 0:00:19]} 47. Ka2 {[%emt 0:00:05]} Kc7 {[%emt 0:00:12]} 48. Ka3 {[%emt 0:00:07]} Rg2 {[%emt 0:00:29]} 49. Rh6 {[%emt 0:00:11]} 1/2-1/2

[Event "RUS-chT Higher League 2021"]
[Site "Sochi"]
[Date "2021.05.08"]
[Round "7.6"]
[White "Yudin, Sergei"]
[Black "Obgolts, Erik"]
[Result "1/2-1/2"]
[ECO "B32"]
[WhiteElo "2484"]
[BlackElo "2414"]
[Annotator "ChessBase"]
[PlyCount "25"]
[EventDate "2021.05.01"]
[EventType "team-tourn"]
[EventCountry "RUS"]
[SourceTitle "playchess.com"]
[Source "ChessBase"]
[SourceQuality "1"]
[TimeControl "40/5400+30:1800+30"]

1. e4 {[%emt 0:00:00]} c5 {[%emt 0:00:00]} 2. Nf3 {[%emt 0:00:00]} Nc6 {[%emt 0:00:00]} 3. d4 {[%emt 0:00:00]} cxd4 {[%emt 0:00:00]} 4. Nxd4 {[%emt 0:00:00]} e5 {[%emt 0:00:41]} 5. Nb5 {[%emt 0:00:43]} d6 {[%emt 0:00:34]} 6. N1c3 {[%emt 0:00:44]} a6 {[%emt 0:02:30]} 7. Na3 {[%emt 0:00:07]} b5 {[%emt 0:00:12]} 8. Nd5 {[%emt 0:00:08]} Nf6 {[%emt 0:00:15]} 9. Bg5 {[%emt 0:00:10]} Qa5+ {[%emt 0:04:22]} 10. Bd2 {[%emt 0:00:25]} Qd8 {[%emt 0:00:08]} 11. Bg5 {[%emt 0:00:25]} Qa5+ {[%emt 0:01:34]} 12. Bd2 {[%emt 0:00:07]} Qd8 {[%emt 0:00:04]} 13. Bg5 {[%emt 0:00:06]} 1/2-1/2

[Event "RUS-chT Higher League 2021"]
[Site "Sochi"]
[Date "2021.05.08"]
[Round "7.7"]
[White "Ovod, Evgenija"]
[Black "Pogromsky, Mikhail"]
[Result "1-0"]
[ECO "B28"]
[WhiteElo "2341"]
[BlackElo "2422"]
[Annotator "NA"]
[PlyCount "95"]
[EventDate "2021.05.01"]
[EventType "team-tourn"]
[EventCountry "RUS"]
[SourceTitle "playchess.com"]
[Source "ChessBase"]
[SourceQuality "1"]
[TimeControl "40/5400+30:1800+30"]

1. e4 {[%emt 0:00:00]} c5 {[%emt 0:00:00]} 2. Nf3 {[%emt 0:00:00]} a6 {[%emt 0:00:00]} 3. c4 {[%emt 0:00:00]} Nc6 {[%emt 0:00:16]} 4. d4 {[%emt 0:00:00]} cxd4 {[%emt 0:00:04]} 5. Nxd4 {[%emt 0:00:00]} e5 {[%emt 0:00:07]} 6. Nf5 {[%emt 0:00:02]} d6 {[%emt 0:01:47]} 7. Nc3 {[%emt 0:00:05]} g6 {[%emt 0:02:44]} 8. Ne3 {[%emt 0:00:05]} Bh6 {[%emt 0:04:52]} 9. Bd3 {[%emt 0:00:07]} Nf6 {[%emt 0:09:33]} 10. Bd2 {[%emt 0:26:19]} Be6 {[%emt 0:08:17]} 11. Ned5 {[%emt 0:12:48]} Bxd2+ {[%emt 0:02:21]} 12. Qxd2 {[%emt 0:00:06]} Nd4 {[%emt 0:09:13]} 13. f4 {[%emt 0:13:35]} Bxd5 {[%emt 0:05:35]} 14. exd5 {[%emt 0:05:35]} O-O {[%emt 0:01:45]} 15. O-O {[%emt 0:03:01]} b5 {[%emt 0:05:45]} 16. fxe5 {[%emt 0:05:36]} dxe5 {[%emt 0:00:12]} 17. Qg5 {[%emt 0:00:09]} bxc4 {[%emt 0:03:08]} 18. Bxc4 {[%emt 0:10:15]} Nd7 {[%emt 0:10:13]} 19. Qxd8 {[%emt 0:00:28]} Rfxd8 {[%emt 0:01:07]} 20. d6 {[%emt 0:00:04]} Nf5 {[%emt 0:00:44]} 21. Ne4 {[%emt 0:00:10]} h5 {[%emt 0:06:27]} 22. Rac1 {[%emt 0:14:50]} Nb6 {[%emt 0:13:37]} 23. Bb3 {[%emt 0:00:09]} Rac8 {[%emt 0:01:45]} 24. Rc7 {[%emt 0:04:00]} Rxc7 {[%emt 0:02:45]} 25. dxc7 {[%emt 0:00:04]} Rc8 {[%emt 0:00:07]} 26. Rc1 {[%emt 0:01:11]} Na8 {[%emt 0:02:47]} 27. Rc6 {[%emt 0:00:56]} Kg7 {[%emt 0:03:41]} 28. Rxa6 {[%emt 0:00:45]} Nxc7 {[%emt 0:00:41]} 29. Rc6 {[%emt 0:02:01]} Ne7 {[%emt 0:01:39]} 30. Rc5 {[%emt 0:00:25]} Na6 {[%emt 0:00:13]} 31. Rxe5 {[%emt 0:00:16]} Rc1+ {[%emt 0:00:14]} 32. Kf2 {[%emt 0:00:06]} Nf5 {[%emt 0:00:32]} 33. Rd5 {[%emt 0:00:34]} Rb1 {[%emt 0:00:39]} 34. Rd2 {[%emt 0:00:41]} Nb4 {[%emt 0:00:45]} 35. Nc5 {[%emt 0:02:28]} Nc6 {[%emt 0:01:41]} 36. Bd5 {[%emt 0:00:18]} Ne5 {[%emt 0:00:22]} 37. h3 {[%emt 0:00:31]} Ra1 {[%emt 0:02:06]} 38. g3 {[%emt 0:00:27]} h4 {[%emt 0:00:17]} 39. gxh4 {[%emt 0:00:32]} Nxh4 {[%emt 0:00:34]} 40. b4 {[%emt 0:00:00]} Nf5 {[%emt 0:00:00]} 41. Nb3 {[%emt 0:05:41]} Nd3+ {[%emt 0:03:14]} 42. Rxd3 {[%emt 0:01:11]} Rxa2+ {[%emt 0:00:02]} 43. Nd2 {[%emt 0:02:46]} Ra4 {[%emt 0:01:49]} 44. b5 {[%emt 0:04:24]} Rb4 {[%emt 0:04:41]} 45. Bc4 {[%emt 0:00:08]} Kf6 {[%emt 0:02:02]} 46. Rb3 {[%emt 0:00:58]} Ra4 {[%emt 0:01:15]} 47. b6 {[%emt 0:00:40]} Nd6 {[%emt 0:00:46]} 48. b7 {[%emt 0:00:41]} 1-0

[Event "RUS-chT Higher League 2021"]
[Site "Sochi"]
[Date "2021.05.08"]
[Round "7.8"]
[White "Matveev, Vladimir"]
[Black "Kolmagorov, Alexey"]
[Result "1/2-1/2"]
[ECO "E04"]
[WhiteElo "2368"]
[BlackElo "2129"]
[Annotator "NA"]
[PlyCount "116"]
[EventDate "2021.05.01"]
[EventType "team-tourn"]
[EventCountry "RUS"]
[SourceTitle "playchess.com"]
[Source "ChessBase"]
[SourceQuality "1"]
[TimeControl "40/5400+30:1800+30"]

1. d4 {[%emt 0:00:00]} Nf6 {[%emt 0:00:00]} 2. c4 {[%emt 0:00:00]} e6 {[%emt 0:00:00]} 3. Nf3 {[%emt 0:00:00]} d5 {[%emt 0:00:00]} 4. g3 {[%emt 0:00:00]} dxc4 {[%emt 0:00:05]} 5. Bg2 {[%emt 0:00:00]} a6 {[%emt 0:00:40]} 6. O-O {[%emt 0:00:38]} Nc6 {[%emt 0:00:21]} 7. e3 {[%emt 0:00:33]} Rb8 {[%emt 0:00:34]} 8. Qe2 {[%emt 0:00:24]} b5 {[%emt 0:02:31]} 9. b3 {[%emt 0:00:04]} cxb3 {[%emt 0:00:12]} 10. axb3 {[%emt 0:00:03]} Bb7 {[%emt 0:04:27]} 11. Bb2 {[%emt 0:08:02]} Nb4 {[%emt 0:08:47]} 12. Rc1 {[%emt 0:06:47]} Bd6 {[%emt 0:01:09]} 13. Nbd2 {[%emt 0:05:11]} O-O {[%emt 0:05:28]} 14. Ne5 {[%emt 0:42:38]} Bxg2 {[%emt 0:05:44]} 15. Kxg2 {[%emt 0:00:08]} Rb6 {[%emt 0:09:25]} 16. Kg1 {[%emt 0:11:24]} Qa8 {[%emt 0:09:49]} 17. Ba3 {[%emt 0:03:56]} Rc8 {[%emt 0:11:19]} 18. Ndf3 {[%emt 0:01:08]} c5 {[%emt 0:12:30]} 19. dxc5 {[%emt 0:06:30]} Rxc5 {[%emt 0:00:19]} 20. Rxc5 {[%emt 0:00:44]} Bxc5 {[%emt 0:00:04]} 21. Ng5 {[%emt 0:03:34]} Rb7 {[%emt 0:07:31]} 22. Qf3 {[%emt 0:04:28]} Qb8 {[%emt 0:13:00]} 23. Bxb4 {[%emt 0:01:18]} Qxe5 {[%emt 0:00:04]} 24. Rxa6 {[%emt 0:02:21]} Rb8 {[%emt 0:01:06]} 25. Bxc5 {[%emt 0:00:22]} Qxc5 {[%emt 0:00:12]} 26. Ra8 {[%emt 0:00:34]} Rxa8 {[%emt 0:01:45]} 27. Qxa8+ {[%emt 0:00:48]} Qf8 {[%emt 0:00:04]} 28. Qc6 {[%emt 0:01:05]} Qe8 {[%emt 0:01:00]} 29. Qb7 {[%emt 0:00:42]} h6 {[%emt 0:00:24]} 30. Nf3 {[%emt 0:00:27]} Qd7 {[%emt 0:01:48]} 31. Qb8+ {[%emt 0:00:06]} Qe8 {[%emt 0:00:47]} 32. Qb7 {[%emt 0:00:53]} Qd7 {[%emt 0:00:04]} 33. Qb8+ {[%emt 0:00:17]} Qe8 {[%emt 0:00:05]} 34. Qe5 {[%emt 0:01:07]} b4 {[%emt 0:04:19]} 35. Qd4 {[%emt 0:00:22]} Qb5 {[%emt 0:00:49]} 36. Ne5 {[%emt 0:00:26]} Nd5 {[%emt 0:00:35]} 37. Qa7 {[%emt 0:00:46]} Qe8 {[%emt 0:00:55]} 38. Qb7 {[%emt 0:00:10]} Qf8 {[%emt 0:00:19]} 39. Nd3 {[%emt 0:00:52]} Qd6 {[%emt 0:00:40]} 40. Qc8+ {[%emt 0:00:00]} Kh7 {[%emt 0:00:00]} 41. Qc4 {[%emt 0:00:38]} f5 {[%emt 0:06:29]} 42. Kf1 {[%emt 0:02:27]} e5 {[%emt 0:08:23]} 43. e4 {[%emt 0:10:17]} Nb6 {[%emt 0:03:14]} 44. Qc2 {[%emt 0:00:07]} fxe4 {[%emt 0:03:24]} 45. Nc5 {[%emt 0:00:04]} Kh8 {[%emt 0:00:53]} 46. Nxe4 {[%emt 0:00:22]} Qd4 {[%emt 0:00:47]} 47. h4 {[%emt 0:06:38]} Nd5 {[%emt 0:03:15]} 48. Qc4 {[%emt 0:00:05]} Qd1+ {[%emt 0:01:32]} 49. Kg2 {[%emt 0:00:05]} Kh7 {[%emt 0:01:03]} 50. Nc5 {[%emt 0:00:39]} Nf4+ {[%emt 0:02:42]} 51. Kh2 {[%emt 0:00:55]} Ne2 {[%emt 0:00:52]} 52. Qd3+ {[%emt 0:01:04]} Qxd3 {[%emt 0:00:22]} 53. Nxd3 {[%emt 0:00:01]} e4 {[%emt 0:01:42]} 54. Nc5 {[%emt 0:01:04]} Nd4 {[%emt 0:00:25]} 55. g4 {[%emt 0:00:55]} g5 {[%emt 0:00:48]} 56. h5 {[%emt 0:00:07]} Kg7 {[%emt 0:00:32]} 57. Kg2 {[%emt 0:00:05]} Kf7 {[%emt 0:00:53]} 58. Kf1 {[%emt 0:00:48]} Kf6 {[%emt 0:00:22]} 1/2-1/2